[Event "Titled Tuesday Blitz January 17 Early 2023"]
[White "Nugumanov, Bakhtiyar"]
[Black "Dvirnyy, Danyyil"]
[WhiteFideId "13701797"]
[BlackFideId "817570"]
[WhiteElo "2316"]
[BlackElo "2541"]
[Result "0-1"]
[Round "03"]
[TimeControl "180+2"]
[Date "2023.01.17"]
[WhiteClock "0:00:04"]
[BlackClock "0:01:48"]

1. Nf3 {[%clk 0:03:00]}  Nf6 {[%clk 0:02:58]} 2. c4 {[%clk 0:03:00]}  g6 {[%clk 0:02:58]} 3. Nc3 {[%clk 0:02:59]}  Bg7 {[%clk 0:02:59]} 4. g3 {[%clk 0:02:59]}  O-O {[%clk 0:02:59]} 5. Bg2 {[%clk 0:03:00]}  d6 {[%clk 0:02:59]} 6. O-O {[%clk 0:03:01]}  e5 {[%clk 0:02:59]} 7. d3 {[%clk 0:03:01]}  Nh5 {[%clk 0:02:57]} 8. h3 {[%clk 0:02:49]}  f5 {[%clk 0:02:57]} 9. Bg5 {[%clk 0:02:48]}  Qe8 {[%clk 0:02:56]} 10. Nd5 {[%clk 0:02:44]}  Rf7 {[%clk 0:02:56]} 11. e4 {[%clk 0:02:08]}  c6 {[%clk 0:02:53]} 12. Nc3 {[%clk 0:01:53]}  f4 {[%clk 0:02:52]} 13. g4 {[%clk 0:01:53]}  Nf6 {[%clk 0:02:48]} 14. Bxf6 {[%clk 0:01:52]}  Bxf6 {[%clk 0:02:49]} 15. d4 {[%clk 0:01:48]}  Na6 {[%clk 0:02:36]} 16. Re1 {[%clk 0:01:12]}  h5 {[%clk 0:02:16]} 17. g5 {[%clk 0:00:59]}  Bd8 {[%clk 0:02:14]} 18. dxe5 {[%clk 0:00:55]}  dxe5 {[%clk 0:02:14]} 19. Qd6 {[%clk 0:00:51]}  Re7 {[%clk 0:02:10]} 20. Rad1 {[%clk 0:00:42]}  Bc7 {[%clk 0:02:09]} 21. Qd2 {[%clk 0:00:24]}  Be6 {[%clk 0:02:10]} 22. b3 {[%clk 0:00:23]}  Nc5 {[%clk 0:02:07]} 23. Qe2 {[%clk 0:00:18]}  a5 {[%clk 0:02:07]} 24. Rd2 {[%clk 0:00:17]}  Rd8 {[%clk 0:02:01]} 25. Red1 {[%clk 0:00:18]}  Red7 {[%clk 0:02:01]} 26. Nh4 {[%clk 0:00:14]}  Kg7 {[%clk 0:01:59]} 27. Nf3 {[%clk 0:00:11]}  Rxd2 {[%clk 0:01:53]} 28. Rxd2 {[%clk 0:00:12]}  Rxd2 {[%clk 0:01:52]} 29. Qxd2 {[%clk 0:00:13]}  Qe7 {[%clk 0:01:53]} 30. h4 {[%clk 0:00:10]}  Bd6 {[%clk 0:01:53]} 31. Ne1 {[%clk 0:00:09]}  Nd7 {[%clk 0:01:54]} 32. Nd3 {[%clk 0:00:08]}  Nc5 {[%clk 0:01:53]} 33. Nxc5 {[%clk 0:00:07]}  Bxc5 {[%clk 0:01:54]} 34. Na4 {[%clk 0:00:05]}  Bb4 {[%clk 0:01:53]} 35. Qd3 {[%clk 0:00:06]}  Kf7 {[%clk 0:01:50]} 36. Nc3 {[%clk 0:00:06]}  Qc5 {[%clk 0:01:48]} 37. Ne2 {[%clk 0:00:04]}  b5 {[%clk 0:01:48]} 0-1


[Site "https://www.chess.com"]

[Event "Titled Tuesday Blitz January 17 Early 2023"]
[White "Houska, Jovanka"]
[Black "Ordekalog"]
[WhiteFideId "405094"]
[WhiteElo "2338"]
[BlackElo "2578"]
[Result "1-0"]
[Round "03"]
[TimeControl "180+2"]
[Date "2023.01.17"]
[WhiteClock "0:00:21"]
[BlackClock "0:00:07"]

1. Nf3 {[%clk 0:03:00]}  d5 {[%clk 0:02:59]} 2. d4 {[%clk 0:02:59]}  c5 {[%clk 0:02:58]} 3. e3 {[%clk 0:02:55]}  Nf6 {[%clk 0:02:57]} 4. Be2 {[%clk 0:02:52]}  Nc6 {[%clk 0:02:56]} 5. O-O {[%clk 0:02:48]}  Bg4 {[%clk 0:02:55]} 6. b3 {[%clk 0:02:47]}  e6 {[%clk 0:02:53]} 7. Bb2 {[%clk 0:02:47]}  Bxf3 {[%clk 0:02:51]} 8. Bxf3 {[%clk 0:02:45]}  cxd4 {[%clk 0:02:52]} 9. exd4 {[%clk 0:02:44]}  Bd6 {[%clk 0:02:52]} 10. Nd2 {[%clk 0:02:37]}  g5 {[%clk 0:02:43]} 11. c4 {[%clk 0:02:30]}  h5 {[%clk 0:02:27]} 12. cxd5 {[%clk 0:02:28]}  exd5 {[%clk 0:02:28]} 13. Re1+ {[%clk 0:02:27]}  Kf8 {[%clk 0:02:27]} 14. Nf1 {[%clk 0:02:26]}  g4 {[%clk 0:02:25]} 15. Be2 {[%clk 0:02:26]}  Ne4 {[%clk 0:02:18]} 16. f3 {[%clk 0:02:07]}  Nf6 {[%clk 0:02:02]} 17. Qd2 {[%clk 0:01:58]}  Rc8 {[%clk 0:01:26]} 18. Rac1 {[%clk 0:01:39]}  h4 {[%clk 0:01:25]} 19. fxg4 {[%clk 0:01:36]}  Ne4 {[%clk 0:01:25]} 20. Qe3 {[%clk 0:01:33]}  Nb4 {[%clk 0:01:18]} 21. Rxc8 {[%clk 0:01:30]}  Qxc8 {[%clk 0:01:19]} 22. Rc1 {[%clk 0:01:26]}  Qb8 {[%clk 0:01:09]} 23. a3 {[%clk 0:01:03]}  Bf4 {[%clk 0:00:55]} 24. Qf3 {[%clk 0:01:02]}  Ng5 {[%clk 0:00:47]} 25. Qc3 {[%clk 0:00:35]}  Na2 {[%clk 0:00:46]} 26. Qc8+ {[%clk 0:00:33]}  Kg7 {[%clk 0:00:44]} 27. Qxb8 {[%clk 0:00:32]}  Rxb8 {[%clk 0:00:44]} 28. Ra1 {[%clk 0:00:33]}  Re8 {[%clk 0:00:33]} 29. Bd3 {[%clk 0:00:27]}  Be3+ {[%clk 0:00:19]} 30. Kh1 {[%clk 0:00:27]}  Nc1 {[%clk 0:00:09]} 31. Bxc1 {[%clk 0:00:26]}  Bxd4 {[%clk 0:00:07]} 32. Rb1 {[%clk 0:00:21]}  Re1 {[%clk 0:00:07]} 33. Bxg5 {[%clk 0:00:21]} 1-0


[Site "https://www.chess.com"]

[Event "Titled Tuesday Blitz January 17 Early 2023"]
[White "Osmak, Yuliia"]
[Black "Manon-og, Ramon Jr."]
[WhiteFideId "14101602"]
[BlackFideId "5200776"]
[WhiteElo "2440"]
[BlackElo "1999"]
[Result "1-0"]
[Round "03"]
[TimeControl "180+2"]
[Date "2023.01.17"]
[WhiteClock "0:00:08"]
[BlackClock "0:00:07"]

1. e4 {[%clk 0:02:59]}  c5 {[%clk 0:02:57]} 2. b3 {[%clk 0:02:57]}  d6 {[%clk 0:02:56]} 3. Bb2 {[%clk 0:02:57]}  Nc6 {[%clk 0:02:56]} 4. f4 {[%clk 0:02:56]}  e5 {[%clk 0:02:57]} 5. Nf3 {[%clk 0:02:46]}  exf4 {[%clk 0:02:56]} 6. Bb5 {[%clk 0:02:45]}  Nf6 {[%clk 0:02:55]} 7. O-O {[%clk 0:02:44]}  Be7 {[%clk 0:02:54]} 8. e5 {[%clk 0:02:39]}  dxe5 {[%clk 0:02:54]} 9. Nxe5 {[%clk 0:02:38]}  Qb6 {[%clk 0:02:51]} 10. Bxc6+ {[%clk 0:02:34]}  bxc6 {[%clk 0:02:52]} 11. Rxf4 {[%clk 0:02:31]}  c4+ {[%clk 0:02:43]} 12. Kh1 {[%clk 0:02:26]}  cxb3 {[%clk 0:02:40]} 13. axb3 {[%clk 0:02:25]}  O-O {[%clk 0:02:40]} 14. Nc4 {[%clk 0:02:06]}  Qc5 {[%clk 0:02:37]} 15. Ba3 {[%clk 0:02:00]}  Qg5 {[%clk 0:02:11]} 16. Bxe7 {[%clk 0:01:53]}  Qxf4 {[%clk 0:02:10]} 17. Bxf8 {[%clk 0:01:53]}  Kxf8 {[%clk 0:02:11]} 18. Nc3 {[%clk 0:01:51]}  Ng4 {[%clk 0:02:09]} 19. g3 {[%clk 0:01:20]}  Qf2 {[%clk 0:01:38]} 20. Qe2 {[%clk 0:01:17]}  Qf5 {[%clk 0:01:00]} 21. Rf1 {[%clk 0:00:38]}  Qh5 {[%clk 0:00:39]} 22. Nd6 {[%clk 0:00:22]}  Be6 {[%clk 0:00:39]} 23. h4 {[%clk 0:00:14]}  Bd5+ {[%clk 0:00:36]} 24. Kg1 {[%clk 0:00:09]}  Rd8 {[%clk 0:00:24]} 25. Nxd5 {[%clk 0:00:08]}  Qxd5 {[%clk 0:00:20]} 26. Rxf7+ {[%clk 0:00:05]}  Kg8 {[%clk 0:00:20]} 27. Qe7 {[%clk 0:00:04]}  Qd4+ {[%clk 0:00:16]} 28. Kh1 {[%clk 0:00:04]}  Qd5+ {[%clk 0:00:16]} 29. Kg1 {[%clk 0:00:02]}  Qd4+ {[%clk 0:00:16]} 30. Kg2 {[%clk 0:00:02]}  Qd5+ {[%clk 0:00:13]} 31. Kh3 {[%clk 0:00:02]}  Nf2+ {[%clk 0:00:13]} 32. Rxf2 {[%clk 0:00:01]}  Qh1+ {[%clk 0:00:13]} 33. Kg4 {[%clk 0:00:01]}  Qd1+ {[%clk 0:00:12]} 34. Kh3 {[%clk 0:00:01]}  Qh1+ {[%clk 0:00:12]} 35. Rh2 {[%clk 0:00:01]}  Qf1+ {[%clk 0:00:12]} 36. Rg2 {[%clk 0:00:02]}  Qh1+ {[%clk 0:00:12]} 37. Rh2 {[%clk 0:00:01]}  Qf1+ {[%clk 0:00:13]} 38. Kg4 {[%clk 0:00:02]}  h5+ {[%clk 0:00:12]} 39. Kg5 {[%clk 0:00:02]}  Qf6+ {[%clk 0:00:11]} 40. Qxf6 {[%clk 0:00:02]}  gxf6+ {[%clk 0:00:12]} 41. Kxf6 {[%clk 0:00:03]}  Rxd6+ {[%clk 0:00:12]} 42. Ke5 {[%clk 0:00:03]}  Rd5+ {[%clk 0:00:13]} 43. Ke4 {[%clk 0:00:04]}  Rc5 {[%clk 0:00:13]} 44. c4 {[%clk 0:00:04]}  Ra5 {[%clk 0:00:12]} 45. d4 {[%clk 0:00:04]}  Ra3 {[%clk 0:00:12]} 46. Rb2 {[%clk 0:00:03]}  Ra1 {[%clk 0:00:12]} 47. Kf5 {[%clk 0:00:03]}  Rg1 {[%clk 0:00:11]} 48. Kg5 {[%clk 0:00:04]}  Rxg3+ {[%clk 0:00:11]} 49. Kxh5 {[%clk 0:00:04]}  Kg7 {[%clk 0:00:11]} 50. Ra2 {[%clk 0:00:04]}  Rxb3 {[%clk 0:00:10]} 51. Rxa7+ {[%clk 0:00:04]}  Kf6 {[%clk 0:00:10]} 52. Ra6 {[%clk 0:00:04]}  Kf5 {[%clk 0:00:09]} 53. Rxc6 {[%clk 0:00:04]}  Rd3 {[%clk 0:00:10]} 54. Rc5+ {[%clk 0:00:04]}  Kf6 {[%clk 0:00:09]} 55. d5 {[%clk 0:00:04]}  Rd4 {[%clk 0:00:09]} 56. Rc6+ {[%clk 0:00:05]}  Kf5 {[%clk 0:00:09]} 57. d6 {[%clk 0:00:05]}  Ke6 {[%clk 0:00:09]} 58. c5 {[%clk 0:00:05]}  Rd5+ {[%clk 0:00:08]} 59. Kg6 {[%clk 0:00:05]}  Rd4 {[%clk 0:00:07]} 60. h5 {[%clk 0:00:05]}  Rg4+ {[%clk 0:00:08]} 61. Kh6 {[%clk 0:00:06]}  Kf6 {[%clk 0:00:08]} 62. Rc7 {[%clk 0:00:06]}  Ke6 {[%clk 0:00:07]} 63. d7 {[%clk 0:00:06]}  Rd4 {[%clk 0:00:08]} 64. c6 {[%clk 0:00:06]}  Ke7 {[%clk 0:00:07]} 65. Rc8 {[%clk 0:00:06]}  Rd6+ {[%clk 0:00:07]} 66. Kg7 {[%clk 0:00:06]}  Rd5 {[%clk 0:00:06]} 67. Re8+ {[%clk 0:00:06]}  Kd6 {[%clk 0:00:05]} 68. d8=Q+ {[%clk 0:00:07]}  Kxc6 {[%clk 0:00:06]} 69. Qxd5+ {[%clk 0:00:07]}  Kxd5 {[%clk 0:00:07]} 70. h6 {[%clk 0:00:07]}  Kd6 {[%clk 0:00:06]} 71. h7 {[%clk 0:00:08]}  Kd7 {[%clk 0:00:07]} 72. h8=Q {[%clk 0:00:08]} 1-0


[Site "https://www.chess.com"]

[Event "Titled Tuesday Blitz January 17 Early 2023"]
[White "Melian, Juan Sebastian"]
[Black "Zaichenko, Daria"]
[WhiteFideId "3706575"]
[BlackFideId "4197453"]
[WhiteElo "2293"]
[BlackElo "2104"]
[Result "1-0"]
[Round "03"]
[TimeControl "180+2"]
[Date "2023.01.17"]
[WhiteClock "0:00:08"]
[BlackClock "0:00:01"]

1. e4 {[%clk 0:03:00]}  c5 {[%clk 0:02:58]} 2. b3 {[%clk 0:03:01]}  Nc6 {[%clk 0:02:53]} 3. Bb2 {[%clk 0:03:01]}  e6 {[%clk 0:02:46]} 4. Bb5 {[%clk 0:03:00]}  Be7 {[%clk 0:02:42]} 5. Bxc6 {[%clk 0:02:55]}  bxc6 {[%clk 0:02:39]} 6. Bxg7 {[%clk 0:02:44]}  Bf6 {[%clk 0:02:36]} 7. Bxf6 {[%clk 0:02:43]}  Qxf6 {[%clk 0:02:37]} 8. Nc3 {[%clk 0:02:44]}  d5 {[%clk 0:02:34]} 9. Qf3 {[%clk 0:02:32]}  Qg7 {[%clk 0:02:28]} 10. Qg3 {[%clk 0:02:29]}  Qf6 {[%clk 0:02:21]} 11. Nh3 {[%clk 0:02:26]}  Ne7 {[%clk 0:02:19]} 12. Qf4 {[%clk 0:02:05]}  Qg7 {[%clk 0:02:16]} 13. O-O-O {[%clk 0:01:59]}  Bd7 {[%clk 0:01:57]} 14. Kb1 {[%clk 0:01:45]}  e5 {[%clk 0:01:50]} 15. Qg3 {[%clk 0:01:36]}  Qf6 {[%clk 0:01:45]} 16. exd5 {[%clk 0:01:13]}  cxd5 {[%clk 0:01:43]} 17. Rhe1 {[%clk 0:01:12]}  e4 {[%clk 0:01:33]} 18. Qf4 {[%clk 0:01:12]}  Qc6 {[%clk 0:01:19]} 19. Ng5 {[%clk 0:01:01]}  O-O-O {[%clk 0:01:14]} 20. d3 {[%clk 0:00:53]}  h6 {[%clk 0:00:49]} 21. Nxf7 {[%clk 0:00:39]}  Ng6 {[%clk 0:00:49]} 22. Nxd8 {[%clk 0:00:33]}  Rxd8 {[%clk 0:00:37]} 23. Qxh6 {[%clk 0:00:29]}  exd3 {[%clk 0:00:34]} 24. Rxd3 {[%clk 0:00:22]}  Bf5 {[%clk 0:00:31]} 25. Rd2 {[%clk 0:00:19]}  d4 {[%clk 0:00:30]} 26. Na4 {[%clk 0:00:18]}  c4 {[%clk 0:00:20]} 27. Qg7 {[%clk 0:00:14]}  d3 {[%clk 0:00:12]} 28. cxd3 {[%clk 0:00:15]}  Bxd3+ {[%clk 0:00:11]} 29. Kb2 {[%clk 0:00:12]}  Nf4 {[%clk 0:00:07]} 30. Rc1 {[%clk 0:00:11]}  Ne6 {[%clk 0:00:05]} 31. Qg4 {[%clk 0:00:11]}  Kb7 {[%clk 0:00:03]} 32. Qxe6 {[%clk 0:00:09]}  Rd6 {[%clk 0:00:01]} 33. Qe7+ {[%clk 0:00:09]}  Ka6 {[%clk 0:00:01]} 34. Qe3 {[%clk 0:00:08]}  Qd5 {[%clk 0:00:01]} 35. Nc3 {[%clk 0:00:08]} 1-0


[Site "https://www.chess.com"]

[Event "Titled Tuesday Blitz January 17 Early 2023"]
[White "Berezin, Viktor"]
[Black "Sovetbekova, Nurai"]
[WhiteFideId "14107872"]
[BlackFideId "13801910"]
[WhiteElo "2307"]
[BlackElo "1764"]
[Result "1-0"]
[Round "03"]
[TimeControl "180+2"]
[Date "2023.01.17"]
[WhiteClock "0:00:06"]
[BlackClock "0:00:03"]

1. d4 {[%clk 0:02:58]}  Nf6 {[%clk 0:02:59]} 2. Nf3 {[%clk 0:02:55]}  g6 {[%clk 0:02:59]} 3. g3 {[%clk 0:02:52]}  Bg7 {[%clk 0:02:58]} 4. Bg2 {[%clk 0:02:53]}  O-O {[%clk 0:02:57]} 5. O-O {[%clk 0:02:53]}  d6 {[%clk 0:02:51]} 6. a4 {[%clk 0:02:49]}  c5 {[%clk 0:02:50]} 7. d5 {[%clk 0:02:49]}  e6 {[%clk 0:02:40]} 8. Nc3 {[%clk 0:02:47]}  exd5 {[%clk 0:02:36]} 9. Nxd5 {[%clk 0:02:48]}  Nc6 {[%clk 0:02:36]} 10. Bg5 {[%clk 0:02:46]}  Be6 {[%clk 0:02:33]} 11. Nxf6+ {[%clk 0:02:41]}  Bxf6 {[%clk 0:02:33]} 12. Bxf6 {[%clk 0:02:40]}  Qxf6 {[%clk 0:02:33]} 13. Qxd6 {[%clk 0:02:39]}  Qxb2 {[%clk 0:02:25]} 14. Ng5 {[%clk 0:02:23]}  Nd4 {[%clk 0:02:11]} 15. e3 {[%clk 0:02:02]}  Rad8 {[%clk 0:02:01]} 16. Qxc5 {[%clk 0:01:43]}  b6 {[%clk 0:01:59]} 17. Qa3 {[%clk 0:01:21]}  Qxa3 {[%clk 0:01:54]} 18. Rxa3 {[%clk 0:01:22]}  Nxc2 {[%clk 0:01:46]} 19. Rc3 {[%clk 0:01:18]}  Rc8 {[%clk 0:01:37]} 20. Rxc8 {[%clk 0:00:51]}  Bxc8 {[%clk 0:01:34]} 21. Rc1 {[%clk 0:00:47]}  Nb4 {[%clk 0:01:29]} 22. Rc7 {[%clk 0:00:46]}  a5 {[%clk 0:01:16]} 23. Nxf7 {[%clk 0:00:42]}  Rxf7 {[%clk 0:00:40]} 24. Rxc8+ {[%clk 0:00:42]}  Kg7 {[%clk 0:00:41]} 25. Rb8 {[%clk 0:00:35]}  Rf6 {[%clk 0:00:32]} 26. f4 {[%clk 0:00:35]}  Rd6 {[%clk 0:00:31]} 27. Bf3 {[%clk 0:00:27]}  Nc2 {[%clk 0:00:21]} 28. Kf2 {[%clk 0:00:18]}  Rd2+ {[%clk 0:00:17]} 29. Be2 {[%clk 0:00:18]}  Nb4 {[%clk 0:00:17]} 30. Kf3 {[%clk 0:00:18]}  Nc2 {[%clk 0:00:12]} 31. Rb7+ {[%clk 0:00:16]}  Kh6 {[%clk 0:00:11]} 32. Bb5 {[%clk 0:00:08]}  Ne1+ {[%clk 0:00:08]} 33. Kg4 {[%clk 0:00:08]}  Rxh2 {[%clk 0:00:08]} 34. Rxb6 {[%clk 0:00:08]}  Nc2 {[%clk 0:00:08]} 35. Re6 {[%clk 0:00:07]}  Rd2 {[%clk 0:00:05]} 36. Re7 {[%clk 0:00:06]}  Rd1 {[%clk 0:00:04]} 37. Be2 {[%clk 0:00:06]}  Re1 {[%clk 0:00:04]} 38. Kf3 {[%clk 0:00:06]}  Ra1 {[%clk 0:00:04]} 39. Bd3 {[%clk 0:00:05]}  Nb4 {[%clk 0:00:04]} 40. Bb5 {[%clk 0:00:05]}  Ra3 {[%clk 0:00:03]} 41. g4 {[%clk 0:00:05]}  g5 {[%clk 0:00:02]} 42. f5 {[%clk 0:00:05]}  Nd5 {[%clk 0:00:02]} 43. Re6+ {[%clk 0:00:05]}  Kg7 {[%clk 0:00:02]} 44. Re5 {[%clk 0:00:04]}  Nf6 {[%clk 0:00:01]} 45. Re6 {[%clk 0:00:05]}  Nd5 {[%clk 0:00:01]} 46. Kf2 {[%clk 0:00:03]}  Nf6 {[%clk 0:00:01]} 47. e4 {[%clk 0:00:03]}  Nxg4+ {[%clk 0:00:01]} 48. Ke2 {[%clk 0:00:04]}  Nf6 {[%clk 0:00:02]} 49. e5 {[%clk 0:00:04]}  Nd5 {[%clk 0:00:02]} 50. Rd6 {[%clk 0:00:03]}  Nf4+ {[%clk 0:00:02]} 51. Kd2 {[%clk 0:00:03]}  g4 {[%clk 0:00:03]} 52. f6+ {[%clk 0:00:03]}  Kf7 {[%clk 0:00:03]} 53. Bc4+ {[%clk 0:00:03]}  Kg6 {[%clk 0:00:03]} 54. f7+ {[%clk 0:00:04]}  Kg7 {[%clk 0:00:02]} 55. Rd8 {[%clk 0:00:04]}  Ng6 {[%clk 0:00:02]} 56. Rg8+ {[%clk 0:00:04]}  Kh6 {[%clk 0:00:02]} 57. Rxg6+ {[%clk 0:00:05]}  hxg6 {[%clk 0:00:01]} 58. f8=Q+ {[%clk 0:00:05]}  Kg5 {[%clk 0:00:02]} 59. Qf6+ {[%clk 0:00:05]}  Kh5 {[%clk 0:00:03]} 60. Qh8+ {[%clk 0:00:05]}  Kg5 {[%clk 0:00:03]} 61. Qf6+ {[%clk 0:00:05]}  Kh5 {[%clk 0:00:03]} 62. e6 {[%clk 0:00:06]}  Ra2+ {[%clk 0:00:03]} 63. Bxa2 {[%clk 0:00:06]} 1-0


[Site "https://www.chess.com"]

[Event "Titled Tuesday Blitz January 17 Early 2023"]
[White "Zaksaite, Salomeja"]
[Black "Iljin, Timofey"]
[WhiteFideId "12801496"]
[BlackFideId "14110180"]
[WhiteElo "2283"]
[BlackElo "2329"]
[Result "0-1"]
[Round "03"]
[TimeControl "180+2"]
[Date "2023.01.17"]
[WhiteClock "0:00:01"]
[BlackClock "0:00:44"]

1. d4 {[%clk 0:02:56]}  f5 {[%clk 0:03:00]} 2. Nc3 {[%clk 0:02:53]}  Nf6 {[%clk 0:03:00]} 3. Nf3 {[%clk 0:02:46]}  g6 {[%clk 0:02:57]} 4. g3 {[%clk 0:02:42]}  Bg7 {[%clk 0:02:53]} 5. Bg2 {[%clk 0:02:42]}  O-O {[%clk 0:02:53]} 6. O-O {[%clk 0:02:42]}  d6 {[%clk 0:02:53]} 7. Re1 {[%clk 0:02:40]}  Nc6 {[%clk 0:02:53]} 8. e4 {[%clk 0:02:40]}  fxe4 {[%clk 0:02:51]} 9. Nxe4 {[%clk 0:02:40]}  Nxe4 {[%clk 0:02:52]} 10. Rxe4 {[%clk 0:02:39]}  Bf5 {[%clk 0:02:52]} 11. Re1 {[%clk 0:02:38]}  e5 {[%clk 0:02:52]} 12. dxe5 {[%clk 0:02:27]}  dxe5 {[%clk 0:02:53]} 13. c3 {[%clk 0:02:07]}  Qxd1 {[%clk 0:02:50]} 14. Rxd1 {[%clk 0:02:07]}  Rad8 {[%clk 0:02:51]} 15. Rxd8 {[%clk 0:01:54]}  Rxd8 {[%clk 0:02:49]} 16. Bg5 {[%clk 0:01:53]}  Rf8 {[%clk 0:02:42]} 17. Re1 {[%clk 0:01:48]}  h6 {[%clk 0:02:40]} 18. Bc1 {[%clk 0:01:44]}  e4 {[%clk 0:02:27]} 19. Nd2 {[%clk 0:01:41]}  Ne5 {[%clk 0:02:15]} 20. Nxe4 {[%clk 0:01:20]}  Nd3 {[%clk 0:02:08]} 21. Rd1 {[%clk 0:01:18]}  Bxe4 {[%clk 0:02:06]} 22. Bxe4 {[%clk 0:01:17]}  Nxf2 {[%clk 0:02:05]} 23. Bd5+ {[%clk 0:01:10]}  Kh7 {[%clk 0:02:04]} 24. Rf1 {[%clk 0:01:08]}  Nd3 {[%clk 0:01:57]} 25. Rxf8 {[%clk 0:00:59]}  Bxf8 {[%clk 0:01:58]} 26. Be3 {[%clk 0:01:00]}  c6 {[%clk 0:01:46]} 27. Be6 {[%clk 0:00:47]}  Bc5 {[%clk 0:01:40]} 28. Bxc5 {[%clk 0:00:44]}  Nxc5 {[%clk 0:01:41]} 29. Bc8 {[%clk 0:00:45]}  b6 {[%clk 0:01:33]} 30. Kf2 {[%clk 0:00:44]}  Na4 {[%clk 0:01:32]} 31. Bd7 {[%clk 0:00:31]}  Nxb2 {[%clk 0:01:32]} 32. Bxc6 {[%clk 0:00:32]}  Nd1+ {[%clk 0:01:29]} 33. Ke2 {[%clk 0:00:29]}  Nxc3+ {[%clk 0:01:30]} 34. Kd3 {[%clk 0:00:27]}  Nxa2 {[%clk 0:01:30]} 35. Kc4 {[%clk 0:00:27]}  Kg7 {[%clk 0:01:29]} 36. Bb5 {[%clk 0:00:19]}  Kf6 {[%clk 0:01:26]} 37. Kb3 {[%clk 0:00:16]}  Kg5 {[%clk 0:00:47]} 38. Kxa2 {[%clk 0:00:14]}  Kg4 {[%clk 0:00:47]} 39. Bf1 {[%clk 0:00:05]}  Kf3 {[%clk 0:00:47]} 40. Kb3 {[%clk 0:00:04]}  Kf2 {[%clk 0:00:48]} 41. Bd3 {[%clk 0:00:04]}  g5 {[%clk 0:00:48]} 42. g4 {[%clk 0:00:02]}  Kg2 {[%clk 0:00:47]} 43. Kc4 {[%clk 0:00:02]}  Kxh2 {[%clk 0:00:48]} 44. Be2 {[%clk 0:00:01]}  Kg3 {[%clk 0:00:48]} 45. Kb5 {[%clk 0:00:01]}  a5 {[%clk 0:00:44]} 0-1


[Site "https://www.chess.com"]

[Event "Titled Tuesday Blitz January 17 Early 2023"]
[White "Orujov, Elshad"]
[Black "Buksa, Nataliya"]
[WhiteFideId "13403540"]
[BlackFideId "14123622"]
[WhiteElo "2304"]
[BlackElo "2406"]
[Result "0-1"]
[Round "03"]
[TimeControl "180+2"]
[Date "2023.01.17"]
[WhiteClock "0:00:03"]
[BlackClock "0:00:26"]

1. e4 {[%clk 0:03:00]}  c5 {[%clk 0:03:00]} 2. Nf3 {[%clk 0:03:00]}  Nc6 {[%clk 0:03:00]} 3. d4 {[%clk 0:02:59]}  cxd4 {[%clk 0:03:01]} 4. Nxd4 {[%clk 0:03:00]}  e5 {[%clk 0:03:01]} 5. Nb5 {[%clk 0:02:59]}  d6 {[%clk 0:03:01]} 6. N1c3 {[%clk 0:02:58]}  a6 {[%clk 0:02:59]} 7. Na3 {[%clk 0:02:57]}  Nf6 {[%clk 0:02:55]} 8. Bg5 {[%clk 0:02:57]}  b5 {[%clk 0:02:54]} 9. Nd5 {[%clk 0:02:57]}  Be7 {[%clk 0:02:55]} 10. Bxf6 {[%clk 0:02:56]}  Bxf6 {[%clk 0:02:55]} 11. c4 {[%clk 0:02:57]}  b4 {[%clk 0:02:55]} 12. Nc2 {[%clk 0:02:58]}  O-O {[%clk 0:02:54]} 13. g3 {[%clk 0:02:57]}  g6 {[%clk 0:02:52]} 14. Bg2 {[%clk 0:02:55]}  Bg7 {[%clk 0:02:51]} 15. O-O {[%clk 0:02:54]}  a5 {[%clk 0:02:52]} 16. Qd3 {[%clk 0:02:50]}  Be6 {[%clk 0:02:52]} 17. Rad1 {[%clk 0:02:49]}  Qb8 {[%clk 0:02:50]} 18. b3 {[%clk 0:02:41]}  Qa7 {[%clk 0:02:50]} 19. Kh1 {[%clk 0:02:37]}  Qc5 {[%clk 0:02:47]} 20. f4 {[%clk 0:02:35]}  Bxd5 {[%clk 0:02:45]} 21. Qxd5 {[%clk 0:02:33]}  Nd4 {[%clk 0:02:43]} 22. Nxd4 {[%clk 0:02:02]}  exd4 {[%clk 0:02:42]} 23. e5 {[%clk 0:01:47]}  Qxd5 {[%clk 0:02:38]} 24. Bxd5 {[%clk 0:01:48]}  Rad8 {[%clk 0:02:37]} 25. Rxd4 {[%clk 0:01:38]}  dxe5 {[%clk 0:02:36]} 26. fxe5 {[%clk 0:01:39]}  Bxe5 {[%clk 0:02:37]} 27. Re4 {[%clk 0:01:40]}  Bd6 {[%clk 0:02:34]} 28. Re3 {[%clk 0:01:16]}  Kg7 {[%clk 0:02:34]} 29. Rfe1 {[%clk 0:01:11]}  h5 {[%clk 0:02:29]} 30. Kg2 {[%clk 0:01:09]}  h4 {[%clk 0:02:10]} 31. Bc6 {[%clk 0:01:03]}  Rh8 {[%clk 0:01:53]} 32. Re8 {[%clk 0:00:56]}  h3+ {[%clk 0:01:51]} 33. Kf3 {[%clk 0:00:49]}  Rdxe8 {[%clk 0:01:34]} 34. Rxe8 {[%clk 0:00:41]}  Rxe8 {[%clk 0:01:34]} 35. Bxe8 {[%clk 0:00:42]}  f5 {[%clk 0:01:34]} 36. Bd7 {[%clk 0:00:33]}  Kf6 {[%clk 0:01:34]} 37. Bc8 {[%clk 0:00:32]}  Kg5 {[%clk 0:01:34]} 38. Ke2 {[%clk 0:00:27]}  Bc5 {[%clk 0:01:27]} 39. Kf1 {[%clk 0:00:26]}  Kf6 {[%clk 0:01:27]} 40. Bd7 {[%clk 0:00:25]}  Ke5 {[%clk 0:01:27]} 41. Bb5 {[%clk 0:00:23]}  Ke6 {[%clk 0:01:15]} 42. Bc6 {[%clk 0:00:23]}  g5 {[%clk 0:01:15]} 43. Bb7 {[%clk 0:00:21]}  Ke5 {[%clk 0:01:15]} 44. Bc6 {[%clk 0:00:19]}  Bd4 {[%clk 0:01:02]} 45. Bb7 {[%clk 0:00:18]}  Kf6 {[%clk 0:00:54]} 46. Bc6 {[%clk 0:00:17]}  Be5 {[%clk 0:00:52]} 47. Kg1 {[%clk 0:00:11]}  Bd6 {[%clk 0:00:51]} 48. Bd7 {[%clk 0:00:11]}  Ke5 {[%clk 0:00:49]} 49. Bc8 {[%clk 0:00:11]}  Ke4 {[%clk 0:00:48]} 50. Bb7+ {[%clk 0:00:11]}  Ke3 {[%clk 0:00:48]} 51. Bc8 {[%clk 0:00:07]}  Ke4 {[%clk 0:00:33]} 52. Bb7+ {[%clk 0:00:07]}  Ke5 {[%clk 0:00:33]} 53. Bc8 {[%clk 0:00:08]}  Bc5+ {[%clk 0:00:33]} 54. Kf1 {[%clk 0:00:07]}  Ke4 {[%clk 0:00:32]} 55. Bb7+ {[%clk 0:00:06]}  Kd3 {[%clk 0:00:28]} 56. Bc8 {[%clk 0:00:07]}  Kc2 {[%clk 0:00:28]} 57. Bxf5+ {[%clk 0:00:07]}  Kb2 {[%clk 0:00:29]} 58. Bd7 {[%clk 0:00:03]}  Kxa2 {[%clk 0:00:27]} 59. Ba4 {[%clk 0:00:03]}  g4 {[%clk 0:00:26]} 60. Bd7 {[%clk 0:00:02]}  Kxb3 {[%clk 0:00:26]} 61. Bxg4 {[%clk 0:00:01]}  a4 {[%clk 0:00:26]} 62. Bxh3 {[%clk 0:00:02]}  a3 {[%clk 0:00:26]} 63. Bf5 {[%clk 0:00:03]}  a2 {[%clk 0:00:26]} 64. Kg2 {[%clk 0:00:03]} 0-1


[Site "https://www.chess.com"]